[Event "Charlotte Fall-GM 2019"]
[Site "Charlotte"]
[Date "2019.11.30"]
[Round "5.1"]
[White "Yu, Jennifer"]
[Black "Korley, Kassa"]
[Result "1-0"]
[ECO "E20"]
[WhiteElo "2278"]
[BlackElo "2447"]
[Annotator "RC"]
[PlyCount "107"]
[EventDate "2019.11.28"]
[EventType "tourn"]
[EventCountry "USA"]
[SourceTitle "playchess.com"]
[Source "ChessBase"]
[SourceQuality "1"]
[TimeControl "5400+30"]

1. d4 {[%emt 1:30:30]} Nf6 {[%emt 1:30:30]} 2. c4 {[%emt 0:00:30]} e6 {[%emt 0:00:30]} 3. Nc3 {[%emt 0:00:30]} Bb4 {[%emt 0:00:30]} 4. g3 {[%emt 0:00:30]} O-O {[%emt 0:00:30]} 5. Bg2 {[%emt 0:00:30]} d5 {[%emt 0:00:30]} 6. Nf3 {[%emt 0:00:30]} c5 {[%emt 0:00:30]} 7. O-O {[%emt 0:00:30]} dxc4 {[%emt 0:00:30]} 8. dxc5 {[%emt 0:00:30]} Nc6 {[%emt 0:00:30]} 9. Qa4 {[%emt 0:00:30]} Qa5 {[%emt 0:00:30]} 10. Qxa5 {[%emt 0:00:30]} Nxa5 {[%emt 0:00:30]} 11. Ne5 {[%emt 0:00:30]} Nd7 {[%emt 0:00:30]} 12. Nxd7 {[%emt 0:00:30]} Bxd7 {[%emt 0:00:30]} 13. Rd1 {[%emt 0:00:30]} Bc6 {[%emt 0:00:30]} 14. Bxc6 {[%emt 0:00:30]} Nxc6 {[%emt 0:00:30]} 15. Na4 {[%emt 0:00:30]} Rfd8 {[%emt 0:00:30]} 16. Be3 {[%emt 0:00:30]} Rd5 {[%emt 0:00:30]} 17. a3 {[%emt 0:00:30]} Ba5 {[%emt 0:00:30]} 18. Rxd5 {[%emt 0:00:30]} exd5 {[%emt 0:00:30]} 19. Rd1 {[%emt 0:00:30]} Rd8 {[%emt 0:00:30]} 20. Bd4 {[%emt 0:00:30]} f6 {[%emt 0:00:30]} 21. f4 {[%emt 0:00:30]} Kf7 {[%emt 0:00:30]} 22. Kf2 {[%emt 0:00:30]} h5 {[%emt 0:00:30]} 23. h3 {[%emt 0:00:30]} g5 {[%emt 0:00:30]} 24. Kf3 {[%emt 0:00:30]} gxf4 {[%emt 0:00:30]} 25. gxf4 {[%emt 0:00:30]} Ke6 {[%emt 0:00:30]} 26. e3 {[%emt 0:00:30]} Rg8 {[%emt 0:00:30]} 27. Bc3 {[%emt 0:00:30]} Bxc3 {[%emt 0:00:30]} 28. Nxc3 {[%emt 0:00:30]} Ne7 {[%emt 0:00:30]} 29. e4 {[%emt 0:00:30]} dxe4+ {[%emt 0:00:30]} 30. Nxe4 {[%emt 0:00:30]} Nf5 {[%emt 0:00:30]} 31. Nd6 {[%emt 0:00:30]} Rg3+ {[%emt 0:00:30]} 32. Kf2 {[%emt 0:00:30]} Rxh3 {[%emt 0:00:30]} 33. Re1+ {[%emt 0:00:30]} Kd5 {[%emt 0:00:30]} 34. Nxf5 {[%emt 0:00:30]} Rh2+ {[%emt 0:00:30]} 35. Kf3 {[%emt 0:00:30]} Rxb2 {[%emt 0:00:30]} 36. Ne3+ {[%emt 0:00:30]} Kxc5 {[%emt 0:00:30]} 37. Rh1 {[%emt 0:00:30]} c3 {[%emt 0:00:30]} 38. Rxh5+ {[%emt 0:00:30]} Kc6 {[%emt 0:00:30]} 39. Rh8 {[%emt 0:00:30]} Kd7 {[%emt 0:00:30]} 40. Ke4 {[%emt 0:00:30]} c2 {[%emt 0:00:30]} 41. Rh1 {[%emt 0:00:30]} Ra2 {[%emt 0:00:30]} 42. Rc1 {[%emt 0:00:30]} Rxa3 {[%emt 0:00:30]} 43. Rxc2 {[%emt 0:00:30]} b5 {[%emt 0:00:30]} 44. Nd5 {[%emt 0:00:30]} Kd6 {[%emt 0:00:30]} 45. Nxf6 {[%emt 0:00:30]} b4 {[%emt 0:00:30]} 46. Rd2+ {[%emt 0:00:30]} Kc5 {[%emt 0:00:30]} 47. f5 {[%emt 0:00:30]} b3 {[%emt 0:00:30]} 48. Nd7+ {[%emt 0:00:30]} Kb5 {[%emt 0:00:30]} 49. f6 {[%emt 0:00:30]} Ra2 {[%emt 0:00:30]} 50. Ke3 {[%emt 0:00:30]} b2 {[%emt 0:00:30]} 51. Rxb2+ {[%emt 0:00:30]} Rxb2 {[%emt 0:00:30]} 52. f7 {[%emt 0:00:30]} Rb3+ {[%emt 0:00:30]} 53. Ke4 {[%emt 0:00:30]} Rb4+ {[%emt 0:00:30]} 54. Ke5 {[%emt 0:00:30]} 1-0

[Event "Charlotte Fall-GM 2019"]
[Site "Charlotte"]
[Date "2019.11.30"]
[Round "5.5"]
[White "Berczes, David"]
[Black "Paragua, Mark"]
[Result "0-1"]
[ECO "E07"]
[WhiteElo "2452"]
[BlackElo "2496"]
[Annotator "RC"]
[PlyCount "74"]
[EventDate "2019.11.28"]
[EventType "tourn"]
[EventCountry "USA"]
[SourceTitle "playchess.com"]
[Source "ChessBase"]
[SourceQuality "1"]
[TimeControl "5400+30"]

1. Nf3 {[%emt 1:30:30]} d5 {[%emt 1:30:30]} 2. d4 {[%emt 0:00:30]} Nf6 {[%emt 0:00:30]} 3. c4 {[%emt 0:00:30]} e6 {[%emt 0:00:30]} 4. g3 {[%emt 0:00:30]} Bb4+ {[%emt 0:00:30]} 5. Bd2 {[%emt 0:00:30]} Be7 {[%emt 0:00:30]} 6. Bg2 {[%emt 0:00:30]} O-O {[%emt 0:00:30]} 7. O-O {[%emt 0:00:30]} c6 {[%emt 0:00:30]} 8. Bf4 {[%emt 0:00:30]} Nbd7 {[%emt 0:00:30]} 9. Nc3 {[%emt 0:00:30]} dxc4 {[%emt 0:00:30]} 10. e4 {[%emt 0:00:30]} Re8 {[%emt 0:00:30]} 11. a4 {[%emt 0:00:30]} Bb4 {[%emt 0:00:30]} 12. Qe2 {[%emt 0:00:30]} Bxc3 {[%emt 0:00:30]} 13. bxc3 {[%emt 0:00:30]} b5 {[%emt 0:00:30]} 14. e5 {[%emt 0:00:30]} Nd5 {[%emt 0:00:30]} 15. Ng5 {[%emt 0:00:30]} Qe7 {[%emt 0:00:30]} 16. Ne4 {[%emt 0:00:30]} a5 {[%emt 0:00:30]} 17. axb5 {[%emt 0:00:30]} cxb5 {[%emt 0:00:30]} 18. Bg5 {[%emt 0:00:30]} Qf8 {[%emt 0:00:30]} 19. Nd6 {[%emt 0:00:30]} N7b6 {[%emt 0:00:30]} 20. Nxb5 {[%emt 0:00:30]} Bd7 {[%emt 0:00:30]} 21. Nd6 {[%emt 0:00:30]} Reb8 {[%emt 0:00:30]} 22. Rfc1 {[%emt 0:00:30]} a4 {[%emt 0:00:30]} 23. h4 {[%emt 0:00:30]} a3 {[%emt 0:00:30]} 24. Ne4 {[%emt 0:00:30]} Bc6 {[%emt 0:00:30]} 25. Nc5 {[%emt 0:00:30]} h6 {[%emt 0:00:30]} 26. Bd2 {[%emt 0:00:30]} Na4 {[%emt 0:00:30]} 27. Ne4 {[%emt 0:00:30]} Rb2 {[%emt 0:00:30]} 28. Qg4 {[%emt 0:00:30]} Kh8 {[%emt 0:00:30]} 29. Qh5 {[%emt 0:00:30]} a2 {[%emt 0:00:30]} 30. Rd1 {[%emt 0:00:30]} Rab8 {[%emt 0:00:30]} 31. Nd6 {[%emt 0:00:30]} Rb1 {[%emt 0:00:30]} 32. Be4 {[%emt 0:00:30]} Rxd1+ {[%emt 0:00:30]} 33. Rxd1 {[%emt 0:00:30]} Kg8 {[%emt 0:00:30]} 34. Kh2 {[%emt 0:00:30]} Naxc3 {[%emt 0:00:30]} 35. Ra1 {[%emt 0:00:30]} Nxe4 {[%emt 0:00:30]} 36. Nxe4 {[%emt 0:00:30]} Rb2 {[%emt 0:00:30]} 37. Qg4 {[%emt 0:00:30]} Kh8 {[%emt 0:00:30]} 0-1

[Event "Charlotte Fall-GM 2019"]
[Site "Charlotte"]
[Date "2019.11.30"]
[Round "6.2"]
[White "Ringoir, Tanguy"]
[Black "Berczes, David"]
[Result "1/2-1/2"]
[ECO "E36"]
[WhiteElo "2501"]
[BlackElo "2452"]
[Annotator "ChessBase"]
[PlyCount "37"]
[EventDate "2019.11.28"]
[EventType "tourn"]
[EventCountry "USA"]
[SourceTitle "playchess.com"]
[Source "ChessBase"]
[SourceQuality "1"]
[TimeControl "5400+30"]

1. d4 {[%emt 1:30:30]} Nf6 {[%emt 1:30:30]} 2. c4 {[%emt 0:00:30]} e6 {[%emt 0:00:30]} 3. Nc3 {[%emt 0:00:30]} Bb4 {[%emt 0:00:30]} 4. Qc2 {[%emt 0:00:30]} O-O {[%emt 0:00:30]} 5. a3 {[%emt 0:00:30]} Bxc3+ {[%emt 0:00:30]} 6. Qxc3 {[%emt 0:00:30]} d5 {[%emt 0:00:30]} 7. Nf3 {[%emt 0:00:30]} dxc4 {[%emt 0:00:30]} 8. Qxc4 {[%emt 0:00:30]} b6 {[%emt 0:00:30]} 9. Bg5 {[%emt 0:00:30]} Ba6 {[%emt 0:00:30]} 10. Qa4 {[%emt 0:00:30]} c5 {[%emt 0:00:30]} 11. dxc5 {[%emt 0:00:30]} bxc5 {[%emt 0:00:30]} 12. Rd1 {[%emt 0:00:30]} Qb6 {[%emt 0:00:30]} 13. Bxf6 {[%emt 0:00:30]} gxf6 {[%emt 0:00:30]} 14. Rd2 {[%emt 0:00:30]} Nc6 {[%emt 0:00:30]} 15. Qg4+ {[%emt 0:00:30]} Kh8 {[%emt 0:00:30]} 16. Qh4 {[%emt 0:00:30]} Kg7 {[%emt 0:00:30]} 17. Qg4+ {[%emt 0:00:30]} Kh8 {[%emt 0:00:30]} 18. Qh4 {[%emt 0:00:30]} Kg7 {[%emt 0:00:30]} 19. Qg4+ {[%emt 0:00:30]} 1/2-1/2

[Event "Charlotte Fall-GM 2019"]
[Site "Charlotte"]
[Date "2019.11.30"]
[Round "6.5"]
[White "Jacobson, Brandon"]
[Black "Grinberg, Eyal"]
[Result "0-1"]
[ECO "B94"]
[WhiteElo "2452"]
[BlackElo "2472"]
[Annotator "RC"]
[PlyCount "62"]
[EventDate "2019.11.28"]
[EventType "tourn"]
[EventCountry "USA"]
[SourceTitle "playchess.com"]
[Source "ChessBase"]
[SourceQuality "1"]
[TimeControl "5400+30"]

1. e4 {[%emt 1:30:30]} c5 {[%emt 1:30:30]} 2. Nf3 {[%emt 0:00:30]} d6 {[%emt 0:00:30]} 3. d4 {[%emt 0:00:30]} cxd4 {[%emt 0:00:30]} 4. Nxd4 {[%emt 0:00:30]} Nf6 {[%emt 0:00:30]} 5. Nc3 {[%emt 0:00:30]} a6 {[%emt 0:00:30]} 6. Bg5 {[%emt 0:00:30]} Nbd7 {[%emt 0:00:30]} 7. Bc4 {[%emt 0:00:30]} Qb6 {[%emt 0:00:30]} 8. Bb3 {[%emt 0:00:30]} e6 {[%emt 0:00:30]} 9. Qd2 {[%emt 0:00:30]} Be7 {[%emt 0:00:30]} 10. O-O-O {[%emt 0:00:30]} Nc5 {[%emt 0:00:30]} 11. f3 {[%emt 0:00:30]} Qc7 {[%emt 0:00:30]} 12. g4 {[%emt 0:00:30]} b5 {[%emt 0:00:30]} 13. a3 {[%emt 0:00:30]} Bb7 {[%emt 0:00:30]} 14. Kb1 {[%emt 0:00:30]} O-O-O {[%emt 0:00:30]} 15. Be3 {[%emt 0:00:30]} Kb8 {[%emt 0:00:30]} 16. Ba2 {[%emt 0:00:30]} Nfd7 {[%emt 0:00:30]} 17. b4 {[%emt 0:00:30]} Nb6 {[%emt 0:00:30]} 18. Ndxb5 {[%emt 0:00:30]} axb5 {[%emt 0:00:30]} 19. Nxb5 {[%emt 0:00:30]} Qc6 {[%emt 0:00:30]} 20. Nd4 {[%emt 0:00:30]} Qa4 {[%emt 0:00:30]} 21. Qc3 {[%emt 0:00:30]} Ncd7 22. Bb3 {[%emt 0:00:30]} Rc8 {[%emt 0:01:00]} 23. Qa1 {[%emt 0:00:30]} Qa6 {[%emt 0:00:30]} 24. b5 {[%emt 0:00:30]} Qa5 {[%emt 0:00:30]} 25. Bd2 {[%emt 0:00:30]} Qa7 {[%emt 0:00:30]} 26. a4 {[%emt 0:00:30]} Nc4 {[%emt 0:00:30]} 27. a5 {[%emt 0:00:30]} Nxd2+ {[%emt 0:00:30]} 28. Rxd2 {[%emt 0:00:30]} Bg5 {[%emt 0:00:30]} 29. Rdd1 {[%emt 0:00:30]} Bf6 {[%emt 0:00:30]} 30. b6 {[%emt 0:00:30]} Qa6 {[%emt 0:00:30]} 31. Qa4 {[%emt 0:00:30]} Nxb6 {[%emt 0:00:30]} 0-1

[Event "Charlotte Fall-GM 2019"]
[Site "Charlotte"]
[Date "2019.12.01"]
[Round "7.3"]
[White "Reshef, Omer"]
[Black "Wang, Kevin"]
[Result "1/2-1/2"]
[ECO "B50"]
[WhiteElo "2461"]
[BlackElo "2416"]
[Annotator "RC"]
[PlyCount "84"]
[EventDate "2019.11.28"]
[EventType "tourn"]
[EventCountry "USA"]
[SourceTitle "playchess.com"]
[Source "ChessBase"]
[SourceQuality "1"]
[TimeControl "5400+30"]

1. e4 {[%emt 1:30:30]} c5 {[%emt 1:30:30]} 2. Nf3 {[%emt 0:00:30]} d6 {[%emt 0:00:30]} 3. c3 {[%emt 0:00:30]} Nf6 {[%emt 0:00:30]} 4. Bd3 {[%emt 0:00:30]} Nc6 {[%emt 0:00:30]} 5. Bc2 {[%emt 0:00:30]} Bg4 {[%emt 0:00:30]} 6. d3 {[%emt 0:00:30]} e6 {[%emt 0:00:30]} 7. Nbd2 {[%emt 0:00:30]} Be7 {[%emt 0:00:30]} 8. h3 {[%emt 0:00:30]} Bh5 {[%emt 0:00:30]} 9. Nf1 {[%emt 0:00:30]} h6 {[%emt 0:00:30]} 10. Ng3 {[%emt 0:00:30]} Bg6 {[%emt 0:00:30]} 11. O-O {[%emt 0:00:30]} O-O {[%emt 0:00:30]} 12. Nh2 {[%emt 0:00:30]} d5 {[%emt 0:00:30]} 13. f4 {[%emt 0:00:30]} c4 {[%emt 0:00:30]} 14. e5 {[%emt 0:00:30]} cxd3 {[%emt 0:00:30]} 15. Bxd3 {[%emt 0:00:30]} Ne4 {[%emt 0:00:30]} 16. Nxe4 {[%emt 0:00:30]} dxe4 {[%emt 0:00:30]} 17. Be2 {[%emt 0:00:30]} Bc5+ {[%emt 0:00:30]} 18. Kh1 {[%emt 0:00:30]} Ne7 {[%emt 0:00:30]} 19. Qe1 {[%emt 0:00:30]} Qd7 {[%emt 0:00:30]} 20. g4 {[%emt 0:00:30]} Rfd8 {[%emt 0:00:30]} 21. Qg3 {[%emt 0:00:30]} e3 {[%emt 0:00:30]} 22. Bxe3 {[%emt 0:00:30]} Bxe3 {[%emt 0:00:30]} 23. Qxe3 {[%emt 0:00:30]} Qd2 {[%emt 0:00:30]} 24. Qxd2 {[%emt 0:00:30]} Rxd2 25. Bf3 Rxb2 26. Rfd1 {[%emt 0:01:00]} Bc2 {[%emt 0:01:30]} 27. Rd2 {[%emt 0:00:30]} Rc8 {[%emt 0:00:30]} 28. Re1 {[%emt 0:00:30]} Nd5 {[%emt 0:00:30]} 29. Bxd5 {[%emt 0:00:30]} exd5 {[%emt 0:00:30]} 30. Nf3 {[%emt 0:00:30]} Rxc3 {[%emt 0:00:30]} 31. Kg2 {[%emt 0:00:30]} Rb4 {[%emt 0:00:30]} 32. Rc1 {[%emt 0:00:30]} Rxf4 {[%emt 0:00:30]} 33. Rcxc2 {[%emt 0:00:30]} Rfxf3 {[%emt 0:00:30]} 34. Rxc3 {[%emt 0:00:30]} Rxc3 {[%emt 0:00:30]} 35. Rxd5 {[%emt 0:00:30]} Kf8 {[%emt 0:00:30]} 36. Rd7 {[%emt 0:00:30]} Rc2+ {[%emt 0:00:30]} 37. Kf3 {[%emt 0:00:30]} Rxa2 {[%emt 0:00:30]} 38. Rxb7 {[%emt 0:00:30]} Ra3+ {[%emt 0:00:30]} 39. Ke4 {[%emt 0:00:30]} a5 {[%emt 0:00:30]} 40. Rb8+ {[%emt 0:00:30]} Ke7 {[%emt 0:00:30]} 41. Rb7+ {[%emt 0:00:30]} Ke8 {[%emt 0:00:30]} 42. Rb8+ {[%emt 0:00:30]} Ke7 {[%emt 0:00:30]} 1/2-1/2

[Event "Charlotte Fall-GM 2019"]
[Site "Charlotte"]
[Date "2019.12.01"]
[Round "9.3"]
[White "Berczes, David"]
[Black "Jacobson, Brandon"]
[Result "1/2-1/2"]
[ECO "D39"]
[WhiteElo "2452"]
[BlackElo "2452"]
[Annotator "ChessBase"]
[PlyCount "51"]
[EventDate "2019.11.28"]
[EventType "tourn"]
[EventCountry "USA"]
[SourceTitle "playchess.com"]
[Source "ChessBase"]
[SourceQuality "1"]
[TimeControl "5400+30"]

1. d4 {[%emt 1:30:30]} Nf6 {[%emt 1:30:30]} 2. c4 {[%emt 0:00:30]} e6 {[%emt 0:00:30]} 3. Nf3 {[%emt 0:00:30]} d5 {[%emt 0:00:30]} 4. Nc3 {[%emt 0:00:30]} dxc4 {[%emt 0:00:30]} 5. e4 {[%emt 0:00:30]} Bb4 {[%emt 0:00:30]} 6. Bg5 {[%emt 0:00:30]} c5 7. Bxc4 {[%emt 0:00:30]} cxd4 {[%emt 0:01:00]} 8. Nxd4 {[%emt 0:00:30]} Bxc3+ {[%emt 0:00:30]} 9. bxc3 {[%emt 0:00:30]} Qa5 {[%emt 0:00:30]} 10. Bxf6 {[%emt 0:00:30]} Qxc3+ {[%emt 0:00:30]} 11. Kf1 {[%emt 0:00:30]} gxf6 {[%emt 0:00:30]} 12. Rc1 {[%emt 0:00:30]} Qa5 {[%emt 0:00:30]} 13. Bb5+ {[%emt 0:00:30]} Ke7 {[%emt 0:00:30]} 14. e5 {[%emt 0:00:30]} fxe5 {[%emt 0:00:30]} 15. Qh5 {[%emt 0:00:30]} Nd7 {[%emt 0:00:30]} 16. Qg5+ {[%emt 0:00:30]} Kf8 {[%emt 0:00:30]} 17. Rxc8+ {[%emt 0:00:30]} Rxc8 {[%emt 0:00:30]} 18. Bxd7 {[%emt 0:00:30]} Qd8 {[%emt 0:00:30]} 19. Nxe6+ {[%emt 0:00:30]} fxe6 {[%emt 0:00:30]} 20. Qh6+ {[%emt 0:00:30]} Kf7 {[%emt 0:00:30]} 21. Qxe6+ {[%emt 0:00:30]} Kg7 {[%emt 0:00:30]} 22. Qg4+ {[%emt 0:00:30]} Kh6 {[%emt 0:00:30]} 23. Qh3+ {[%emt 0:00:30]} Kg7 {[%emt 0:00:30]} 24. Qg4+ {[%emt 0:00:30]} Kh6 {[%emt 0:00:30]} 25. Qh3+ {[%emt 0:00:30]} Kg7 {[%emt 0:00:30]} 26. Qg4+ {[%emt 0:00:30]} 1/2-1/2

[Event "Charlotte Fall-GM 2019"]
[Site "Charlotte"]
[Date "2019.12.02"]
[Round "9.5"]
[White "Yu, Jennifer"]
[Black "Nakar, Eylon"]
[Result "0-1"]
[ECO "A29"]
[WhiteElo "2278"]
[BlackElo "2433"]
[Annotator "RC"]
[PlyCount "87"]
[EventDate "2019.11.28"]
[EventType "tourn"]
[EventCountry "USA"]
[SourceTitle "playchess.com"]
[Source "ChessBase"]
[SourceQuality "1"]
[TimeControl "5400+30"]

1. c4 {[%emt 1:30:30]} Nf6 {[%emt 1:30:30]} 2. Nc3 {[%emt 0:00:30]} e5 {[%emt 0:00:30]} 3. Nf3 {[%emt 0:00:30]} Nc6 {[%emt 0:00:30]} 4. g3 {[%emt 0:00:30]} d5 {[%emt 0:00:30]} 5. cxd5 {[%emt 0:00:30]} Nxd5 {[%emt 0:00:30]} 6. Bg2 {[%emt 0:00:30]} Nb6 {[%emt 0:00:30]} 7. O-O {[%emt 0:00:30]} Be7 {[%emt 0:00:30]} 8. d3 {[%emt 0:00:30]} O-O {[%emt 0:00:30]} 9. a3 {[%emt 0:00:30]} Be6 {[%emt 0:00:30]} 10. b4 {[%emt 0:00:30]} a5 {[%emt 0:00:30]} 11. b5 {[%emt 0:00:30]} Nd4 {[%emt 0:00:30]} 12. Rb1 {[%emt 0:00:30]} f6 {[%emt 0:00:30]} 13. Nd2 {[%emt 0:00:30]} Qc8 {[%emt 0:00:30]} 14. e3 {[%emt 0:00:30]} Nf5 {[%emt 0:00:30]} 15. Qc2 {[%emt 0:00:30]} Rd8 {[%emt 0:00:30]} 16. Rd1 {[%emt 0:00:30]} Nd6 {[%emt 0:00:30]} 17. a4 {[%emt 0:00:30]} Bg4 {[%emt 0:00:30]} 18. Re1 {[%emt 0:00:30]} Bh3 {[%emt 0:00:30]} 19. Bh1 {[%emt 0:00:30]} Nf7 {[%emt 0:00:30]} 20. Nc4 {[%emt 0:00:30]} Nxc4 {[%emt 0:00:30]} 21. dxc4 {[%emt 0:00:30]} c6 {[%emt 0:00:30]} 22. Bb2 {[%emt 0:00:30]} Qe6 {[%emt 0:00:30]} 23. Qe2 {[%emt 0:00:30]} Bg4 {[%emt 0:00:30]} 24. f3 {[%emt 0:00:30]} Bf5 {[%emt 0:00:30]} 25. Rbd1 {[%emt 0:00:30]} Bc5 {[%emt 0:00:30]} 26. Ne4 {[%emt 0:00:30]} Bxe4 {[%emt 0:00:30]} 27. fxe4 {[%emt 0:00:30]} Bb4 {[%emt 0:00:30]} 28. Rf1 {[%emt 0:00:30]} Rxd1 {[%emt 0:00:30]} 29. Rxd1 {[%emt 0:00:30]} Rd8 {[%emt 0:00:30]} 30. Rxd8+ {[%emt 0:00:30]} Nxd8 {[%emt 0:00:30]} 31. Bf3 {[%emt 0:00:30]} Qd6 {[%emt 0:00:30]} 32. Bg4 {[%emt 0:00:30]} g6 {[%emt 0:00:30]} 33. Bc1 {[%emt 0:00:30]} Kg7 {[%emt 0:00:30]} 34. h4 {[%emt 0:00:30]} Nf7 {[%emt 0:00:30]} 35. Kg2 {[%emt 0:00:30]} Kf8 {[%emt 0:00:30]} 36. Qf1 {[%emt 0:00:30]} Ke7 {[%emt 0:00:30]} 37. Be2 {[%emt 0:00:30]} Nd8 {[%emt 0:00:30]} 38. h5 {[%emt 0:00:30]} Nf7 {[%emt 0:00:30]} 39. hxg6 {[%emt 0:00:30]} hxg6 {[%emt 0:00:30]} 40. Qh1 {[%emt 0:00:30]} Bd2 {[%emt 0:00:30]} 41. c5 {[%emt 0:00:30]} Qd7 {[%emt 0:00:30]} 42. Kf2 {[%emt 0:00:30]} Ng5 {[%emt 0:00:30]} 43. bxc6 {[%emt 0:00:30]} bxc6 {[%emt 0:00:30]} 44. Bxd2 {[%emt 0:00:30]} 0-1